Cogmind - Beta 14 @@@ ROGUE MODE // 2025.01.04 @ 02:52:43 Player: Sahil Tandale Result: Destroyed by G-47 Trooper with Particle Gun Performance ------------- Evolutions (1) 500 Regions Visited (3) 600 Robots Destroyed (11) 55 Value Destroyed (313) 313 Prototype IDs (0) 0 Alien Tech Used (0) 0 Bonus (0) 0 TOTAL SCORE: 1468 Bonus ------- None Cogmind --------- Core Integrity 0/400 Matter 300/300 Energy 100/100 System Corruption 0% Temperature Cool (9) Movement Core (350) Ox6 Location -9/Materials Parts ------- > --- POWER (1) -------- (None) > --- PROPULSION (3) --- (None) > --- UTILITY (3) ------ Large Storage Unit Targeting Computer > --- WEAPON (2) ------- (None) > --- INVENTORY (15) --- Small Battery (100) Peak State ------------ > --- POWER ------------ (None) > --- PROPULSION ------- Aluminum Leg Wheel > --- UTILITY ---------- Medium Matter Pod Targeting Computer > --- WEAPON ----------- Particle Gun Light Assault Rifle > --- INVENTORY -------- Small Storage Unit Small Battery Mining Laser [Rating: 7] Favorites ----------- Power None Propulsion Aluminum Leg Treads Light Treads Leg Aluminum Leg Wheel Wheel Utility Targeting Computer Storage Large Storage Unit Processor Targeting Computer Weapon Light Assault Rifle Energy Gun Particle Gun Ballistic Gun Light Assault Rifle Build | -11 -10 -10 -9 ------- Run | Yrd Mat Min Mat Slots Evolved 2 | . . . 2 Power . | . . . . Propulsion 1 | . . . 1 Utility 1 | . . . 1 Weapon . | . . . . Parts Attached 16 | 5 10 1 . Power . | . . . . Engine . | . . . . Core . | . . . . Reactor . | . . . . Propulsion 8 | 2 5 1 . Treads 2 | 2 . . . Leg 5 | . 4 1 . Wheel 1 | . 1 . . Hover . | . . . . Flight . | . . . . Utility 5 | 1 4 . . Device . | . . . . Storage 4 | 1 3 . . Processor 1 | . 1 . . Hackware . | . . . . Protection . | . . . . Artifact . | . . . . Weapon 3 | 2 1 . . Energy Gun 1 | . 1 . . Energy Cannon . | . . . . Ballistic Gun 2 | 2 . . . Ballistic Cannon . | . . . . Launcher . | . . . . Special Weapon . | . . . . Impact Weapon . | . . . . Slashing Weapon . | . . . . Piercing Weapon . | . . . . Special Melee Weapon . | . . . . Unidentified Prototypes . | . . . . Parts Lost 6 | . 3 . 3 Power . | . . . . Propulsion 4 | . 2 . 2 Utility . | . . . . Weapon 2 | . 1 . 1 Highest Loss Streak 2 | . 2 . 2 To Critical Strikes . | . . . . Average Slot Usage (%) 69 | . 78 71 46 Treads 6 | . 12 . . Leg 17 | . 11 28 18 Storage 13 | . 13 14 11 Processor 12 | . 12 14 11 Energy Gun 8 | . 6 14 5 Ballistic Gun 10 | . 19 . . Peak Build Rating 7 | 5 7 6 6 Average Rating 5 | 3 6 6 4 On Entrance 4 | . 5 6 6 Naked Turns . | . . . . Heaviest Build 24 | 7 24 23 23 Greatest Support 40 | 40 40 20 20 Greatest Overweight (x) 6 | . 1 1 6 Average Overweight (x) . | . . 1 . Largest Inventory Capacity 15 | 8 15 15 15 Average Capacity 11 | 7 8 15 15 Most Carried 5 | 4 5 2 1 Average Carried 1 | . 2 1 1 Final Capacity 15 | 8 15 15 15 Final Carried 1 | 1 1 1 1 Class Distribution -------------------- 100% | Mutant Dominant Class ---------------- Mutant | -10/Materials Mutant | -10/Mines Mutant | -9/Materials Resources | -11 -10 -10 -9 ----------- Run | Yrd Mat Min Mat Matter Collected 486 | 229 247 10 . Remotely . | . . . . Salvage Created 319 | 20 181 118 . Parts 21 | 3 11 7 . Haulers Intercepted . | . . . . Recyclers Shooed 1 | . 1 . . Parts Field Recycled . | . . . . Retrieved Matter . | . . . . Parts Self-Destructed . | . . . . Prevented . | . . . . Kills | -11 -10 -10 -9 ------- Run | Yrd Mat Min Mat Combat Hostiles Destroyed 9 | . 4 5 . Guns 9 | . 4 5 . Classes Destroyed 4 | 1 2 1 . Tunneler 1 | 1 . . . Watcher 1 | . 1 . . Swarmer 3 | . . 3 . Grunt 6 | . 4 2 . Best Kill Streak 5 | 1 5 3 . Combat Bots Only 4 | . 4 3 . Max Kills in Single Turn 1 | 1 1 1 . Gunslinging . | . . . . Exploded . | . . . . Melee . | . . . . Uniques/NPCs Destroyed . | . . . . Combat | -11 -10 -10 -9 -------- Run | Yrd Mat Min Mat Hostile Shots Fired 174 | . 59 26 89 Missed 52 | . 18 7 27 Damage Taken 1369 | . 601 168 600 Core 608 | . 145 58 405 Absorbed by Shields . | . . . . Core Remaining (%) 59 | 100 . 18 . Volleys Fired 47 | 1 23 22 1 Largest 2 | 2 2 1 1 Hottest 85 | 40 85 65 65 Shots Fired 71 | 2 46 22 1 Gun 71 | 2 46 22 1 Cannon . | . . . . Launcher . | . . . . Special . | . . . . Kinetic 46 | 2 44 . . Thermal 25 | . 2 22 1 Explosive . | . . . . Electromagnetic . | . . . . Robot Hit Streak 12 | . 12 9 2 Robot Miss Streak 2 | . 2 2 . Penetration Max . | . . . . Secondary Targets . | . . . . Shots Hit Robots 50 | . 31 18 1 Core Hits 19 | 1 11 7 . Critical Kills . | . . . . Critical Parts Destroyed . | . . . . Critical Strikes . | . . . . Melee Attacks . | . . . . Impact . | . . . . Slashing . | . . . . Piercing . | . . . . Sneak Attacks . | . . . . Combat Hostiles . | . . . . Follow-up Attacks . | . . . . Damage Inflicted 605 | 10 303 277 15 Guns 605 | 10 303 277 15 Cannons . | . . . . Explosions . | . . . . Melee . | . . . . Ramming . | . . . . Kinetic 279 | 10 269 . . Thermal 326 | . 34 277 15 Explosive . | . . . . Electromagnetic . | . . . . Impact . | . . . . Slashing . | . . . . Piercing . | . . . . Highest Corruption . | . . . . Average Corruption . | . . . . Corruption Purged . | . . . . Corruption Blocked . | . . . . Overload Shots . | . . . . Overflow Damage . | . . . . Projectiles . | . . . . Explosions . | . . . . Melee . | . . . . Knockbacks . | . . . . Impact . | . . . . Kinetic . | . . . . Secondary . | . . . . Self-Inflicted Damage 82 | . 82 . . Shots 1 | . 1 . . Rammed . | . . . . Targets Rammed . | . . . . Kicked . | . . . . Crushed . | . . . . Highest Temperature 252 | . 80 252 14 Average Temperature 76 | . 13 111 12 Received Heat Transfer 453 | . 303 21 129 Siege Activations . | . . . . Robots Corrupted . | . . . . Combat Hostiles . | . . . . Parts Fried . | . . . . Impact Corruptions . | . . . . Robots Melted . | . . . . Combat Hostiles . | . . . . Parts Melted 1 | . . 1 . Heat Transferred 777 | . 74 666 37 Parts Sabotaged . | . . . . Parts Stolen . | . . . . Parts Stripped . | . . . . Power Chain Reactions . | . . . . Alert | -11 -10 -10 -9 ------- Run | Yrd Mat Min Mat Peak Influence 180 | 5 155 180 70 Initial 70 | . 3 60 70 Average 86 | 1 97 117 63 Maximum Alert Level . | . . . . Low Security (%) 100 | 100 100 100 100 Level 1 . | . . . . Level 2 . | . . . . Level 3 . | . . . . Level 4 . | . . . . Level 5 . | . . . . High Security . | . . . . Max Security . | . . . . Squads Dispatched 1 | . 1 . . Investigation . | . . . . Extermination . | . . . . Reinforcement 1 | . 1 . . Assault . | . . . . Garrison . | . . . . Intercept . | . . . . Searches Triggered . | . . . . Construction Impeded . | . . . . Haulers Reinforced . | . . . . Active Scanning Responses . | . . . . Cargo Convoy Interrupts . | . . . . Stealth | -11 -10 -10 -9 --------- Run | Yrd Mat Min Mat Distress Signals 1 | . 1 . . Communications Jammed . | . . . . Distress Signals . | . . . . Times Spotted 20 | . 7 5 8 Peak Tracking Total 8 | . 3 3 8 Tactical Retreats . | . . . . Traps | -11 -10 -10 -9 ------- Run | Yrd Mat Min Mat Traps Triggered . | . . . . Indirectly . | . . . . Trap Hack Attempts . | . . . . Triggered . | . . . . Disarmed . | . . . . Reprogrammed . | . . . . Reused . | . . . . Traps Extracted . | . . . . Installed . | . . . . Triggered . | . . . . Machines | -11 -10 -10 -9 ---------- Run | Yrd Mat Min Mat Machines Disabled 3 | . 3 . . Max in Single Turn 3 | . 3 . . Machines Repaired . | . . . . Machines Dismantled . | . . . . Machines Sabotaged . | . . . . Overloaded Fab Kills . | . . . . Hacking | -11 -10 -10 -9 --------- Run | Yrd Mat Min Mat Machines Accessed 2 | . 1 . 1 Terminals 2 | . 1 . 1 Fabricators . | . . . . Repair Stations . | . . . . Recycling Units . | . . . . Scanalyzers . | . . . . Garrison Access . | . . . . Total Hacks 8 | . 4 . 4 Successful 5 | . 3 . 2 Failed 2 | . . . 2 Catastrophic . | . . . . Database Lockouts 1 | . 1 . . Manual . | . . . . Terminals 8 | . 4 . 4 Fabricators . | . . . . Repair Stations . | . . . . Recycling Units . | . . . . Scanalyzers . | . . . . Garrison Access . | . . . . Terminal Hacks 5 | . 3 . 2 Record 3 | . 3 . . Locate Traps 1 | . . . 1 Patrol Status 1 | . . . 1 Fabricator Hacks . | . . . . Repair Station Hacks . | . . . . Recycling Unit Hacks . | . . . . Scanalyzer . | . . . . Garrison Access Hacks . | . . . . Unauthorized Hacks . | . . . . Terminals . | . . . . Fabricators . | . . . . Repair Stations . | . . . . Recycling Units . | . . . . Scanalyzers . | . . . . Garrison Access . | . . . . Data Cores Recovered . | . . . . Used . | . . . . Hacking Detections 1 | . . . 1 Full Trace Events . | . . . . Feedback Events . | . . . . Feedback Blocked . | . . . . Robot Schematics Acquired . | . . . . Robots Built . | . . . . Authchips . | . . . . Time . | . . . . Total Robot Build Rating . | . . . . Part Schematics Acquired . | . . . . Parts Built . | . . . . Authchips . | . . . . Time . | . . . . Total Part Build Rating . | . . . . Parts Repaired . | . . . . Time . | . . . . Parts Recycled . | . . . . Recycled Matter . | . . . . Retrieved Matter . | . . . . Retrieved Components . | . . . . Parts Scanalyzed . | . . . . Part Schematics Acquired . | . . . . Parts Damaged . | . . . . Bothacking | -11 -10 -10 -9 ------------ Run | Yrd Mat Min Mat Used RIF Installer . | . . . . Robots Hacked . | . . . . Non-combat . | . . . . Combat . | . . . . Robot Hacks Applied . | . . . . Relay Couplers Released . | . . . . Fabnet Peak Effective % . | . . . . Robots Rewired . | . . . . Allies Hacked . | . . . . Hacks Repelled . | . . . . Allies | -11 -10 -10 -9 -------- Run | Yrd Mat Min Mat Total Allies . | . . . . Largest Group . | . . . . Highest-Rated Group . | . . . . Highest-Rated Ally . | . . . . Total Orders . | . . . . Ally Attacks . | . . . . Total Damage . | . . . . Kills . | . . . . Allies Corrupted . | . . . . Allies Melted . | . . . . Intel | -11 -10 -10 -9 ------- Run | Yrd Mat Min Mat Robot Analysis Total . | . . . . Derelict Logs Recovered . | . . . . Drone Launches . | . . . . Drone Recoveries . | . . . . Exploration | -11 -10 -10 -9 ------------- Run | Yrd Mat Min Mat Turns Passed 801 | 77 396 184 144 Spaces Moved 400 | 50 195 72 83 Core 25 | 14 8 . 3 Treads 126 | 36 90 . . Legs 249 | . 97 72 80 Wheels . | . . . . Hover . | . . . . Flight . | . . . . Fastest Speed 50 | 50 50 190 120 Average Speed 163 | 129 157 190 172 Slowest Speed 350 | 160 190 190 350 Overloaded Moves . | . . . . Propulsion Burnouts . | . . . . Robots Hopped . | . . . . Cave-ins Triggered . | . . . . Exploration Rate (%) 16 | 4 29 15 16 Regions Visited 3 Branch Regions 1 Pre-discovered Areas . | . . . . Known Exits Taken . | . . . . Unknown Exits Taken 3 | 1 1 1 . Scrap Searched . | . . . . Spaces Dug . | . . . . Terrain Destroyed 13 | . 13 . . Melee . | . . . . Projectile . | . . . . AOE 13 | . 13 . . Terrain Rammed . | . . . . Walls Destroyed . | . . . . Machines Disabled . | . . . . Actions | -11 -10 -10 -9 --------- Run | Yrd Mat Min Mat Total 492 | 61 249 98 84 Wait 5 | . 3 2 . Move 397 | 49 194 71 83 Hop . | . . . . Pick Up 17 | 6 10 1 . Fast Attach . | . . . . Attach 11 | 5 6 . . Detach 2 | . 2 . . Swap 5 | . 4 1 . Drop 8 | . 7 1 . Fire 47 | 1 23 22 1 Melee . | . . . . Ram . | . . . . Kick . | . . . . Crush . | . . . . Escape Stasis . | . . . . Rewire . | . . . . Trap . | . . . . Miscellaneous . | . . . . Route ------- -11/Scrapyard -10/Materials -10/Mines -9/Materials History --------- Turn | Location | Event 7 | -11/Scrapyard | Discovered new exit (range 16) 78 | -11/Scrapyard | Entered Materials 299 | -10/Materials | Core integrity fell below 50% 343 | -10/Materials | Build established: Mutant 352 | -10/Materials | Discovered new exit (range 11) 447 | -10/Materials | Central database locked down 474 | -10/Materials | Entered Mines 598 | -10/Mines | Discovered new exit (range 12) 641 | -10/Mines | Core integrity fell below 20% 658 | -10/Mines | Entered Materials 658 | -9/Materials | Evolved 2 slots: Propulsion x1, Utility x1 796 | -9/Materials | Core integrity fell below 50% 801 | -9/Materials | Core integrity fell below 20% 802 | -9/Materials | Destroyed by G-47 Trooper with Particle Gun Last Messages --------------- LOCATION=UNKNOWN GOAL=ESCAPE 00715_ Connecting with Terminal... 00715_ Current location identified: Materials >>Enumerate(Patrols) Retrieving latest reported positions... Found 5 active patrol squads. Downloaded coordinate data. >>Traps(Locate) Found 6 traps in 1 array: 6x Explosive Trap Map updated. 00725_ K-01 Serf collects debris. 00733_ Particle Gun destroyed. 00735_ K-01 Serf collects debris. 00751_ C-30 ARC bursts open, deploying its payload. 00751_ S-10 Pest unfolds itself. 00754_ K-01 Serf collects debris. 00768_ Aluminum Leg destroyed. 00794_ K-01 Serf collects debris. Map ----- +----------------------------------------------------+ | ?????????????????????????????????????????????????? | | ?????????????????????????????????????????????????? | | ?????????????????????????????????????????????????? | | ?????????????????????????????????????????????????? | | ?????????????????????????????????????????????????? | | ?????????????????????????????????????????????????? | | ?????????????????????????????????????????????????? | | ?????????????????????????????????????????????????? | | ?????????????????????????????????????????????????? | | ?????????????????????????????????????????????????? | | ?????????????????????????????????????????????????? | | ?????????????????????????????????????????????????? | | ?????????????????????????????????????????????????? | | ?????????????????????????????????????????????????? | | ?????????????????????????????????????????????????? | | ?????????????????????????????????????????????????? | | ???????????? ????????????????????????????????????? | | ????????????# ???????????????????????????????????? | | ????????????# ??????????????????????????????????? | | ????????????# ??????????????????????????????????? | | ????????????# ?????????????????????????????????? | | ??????????### ##???????????????????????????????? | | ??????????# gg ###+####???????????????????????? | | ??????????# g #???????????????????????? | | ??????????# ###Y####????????????????? | | ??????????+ Y @ #????????????????? | | ??????????# a #k #????????????????? | | ??????????# # #????????????????? | | ??????????# ## #? ] #????????????????? | | ??????????########## #? #????????????????? | | ??????????# #s s #??]]] #????????????????? | | ??????????# """ /g ^ #??]] #????????????????? | | ??????????# """ #^^^ ^+???] #????????????????? | | ??????????# """ #% #??? #????????????????? | | ??????????# # #???? #????????????????? | | ??????????# """ # #???? #+##+????????????? | | ??????????# """ # #????? # #???????????? | | ??????????# """ # + ???? # #???????????? | | ??????????# # # ????# #???????????? | | ??????????### ""#+## ####???# ############# | | ????????????#S""# #??????# | | ????????????#"" # #??????# | | ????????????##########+#######??# | | ???????????????# #??# ##+###+########+ | | ???????????????# #??# ## # | | ????????????#### #?## ## # | | ????????????#""" ### # # | | ????????????#"R """ + T + # | | ????????????#""" """"" ### # # | | ????????????# "" """"" #?##### # | +----------------------------------------------------+ Best States ------------- Heat Dissipation 28 Energy Generation 5 Energy Capacity 100 Matter Stores 395 Matter Capacity 400 Sight Range 16 Terrain Scan Density 10 Evasion (%) 55 Targeting Accuracy 5 Recoil Reduction 2 Item Schematics ----------------- None Robot Schematics ------------------ None Fabricated ------------ Nothing Alien Tech Used ----------------- None Achievements -------------- None Challenges ------------ None Game ------ Seed ContainmentAlertBasin Manual? 0 Play Time 00:30:48 Cumulative 2.7 hours Start 2025.01.04 @ 02:19:26 End 2025.01.04 @ 02:52:43 Sessions 1 Manual Loads 0 Difficulty Rogue Special Mode None Game No. 5 Rogue 5 Adventurer 0 Explorer 0 Win Type - Total 0 Types 0/0/0/0/0/0/0/0/0 Lore% 0 Gallery% 5 Achievement% 5 Wizard Run 0 Options --------- Layout 1 ASCII 0 Keyboard 0 Movement Mouse Keybinds 0 Fullscreen 2 Font 36/Tamsyn Map View 27x21 Zoom Use 83% Tactical HUD 1 Map Filters NONE Filters NONE Steam 1 RUN: d6934c65-ca5a-4468-aced-17df77db4514